bitfinex/quotes_BTCUSD_20250221
["timestamp","ask_amount","ask_price","bid_price","bid_amount"]
[1740172943560,0.15009992,95381.0,95370.0,0.00989191]
[1740172943959,0.001,95373.0,95370.0,0.00989191]
[1740172944167,0.001,95373.0,95372.0,0.00989191]
[1740172944376,9.992e-05,95381.0,95372.0,0.00989191]
[1740172944570,0.002,95376.0,95374.0,0.00989191]
[1740172944769,0.157273,95375.0,95374.0,0.00989191]
[1740172944978,0.209698,95375.0,95370.0,0.00989191]
[1740172945172,0.157275,95374.0,95373.0,0.00989191]
[1740172946182,0.211697,95376.0,95373.0,0.00989191]
[1740172946183,0.002,95376.0,95373.0,0.00989191]
[1740172946607,0.15,95380.0,95373.0,0.00989191]
[1740172946608,0.002,95374.0,95373.0,0.00989191]
[1740172946986,0.002,95374.0,95373.0,0.08609191]
[1740172947215,0.002,95376.0,95375.0,0.00989191]
[1740172947559,9.992e-05,95381.0,95375.0,0.00989191]
[1740172948464,9.992e-05,95381.0,95375.0,0.01089191]
[1740172948763,9.992e-05,95381.0,95380.0,0.00989191]
[1740172949345,9.992e-05,95381.0,95380.0,0.05589191]
[1740172950468,9.992e-05,95381.0,95380.0,0.05789191]
[1740172950795,9.992e-05,95381.0,95380.0,0.13969191]
[1740172951931,9.992e-05,95381.0,95380.0,0.13769191]
[1740172952352,0.15,95399.0,95389.0,0.00989191]
[1740172952665,0.157249,95390.0,95389.0,0.00989191]
[1740172953611,0.209658,95393.0,95380.0,0.1278]
[1740172953811,0.15,95389.0,95380.0,0.00989191]
[1740172954018,0.157264,95381.0,95380.0,0.00989191]
[1740172954646,0.209671,95388.0,95364.0,0.1235]
[1740172954647,0.209702,95373.0,95364.0,0.1235]
[1740172954856,0.157285,95368.0,95367.0,0.00989191]
[1740172955058,0.157285,95368.0,95364.0,0.12359992]
[1740172955059,0.366983,95372.0,95371.0,0.00989191]
[1740172955623,0.157269,95378.0,95371.0,0.00989191]
[1740172956235,0.157269,95378.0,95377.0,0.00989191]
[1740172957054,0.158269,95378.0,95377.0,0.00989191]
[1740172958340,0.157269,95378.0,95377.0,0.00982991]
[1740172958549,0.157268,95378.0,95377.0,0.001]
[1740172958754,1.19249937,95378.0,95377.0,0.001]
[1740172958993,1.44514506,95378.0,95377.0,0.001]
[1740172959605,0.15729,95365.0,95364.0,9.992e-05]
[1740172959779,0.30729,95365.0,95364.0,9.992e-05]
[1740172961221,0.41784148,95365.0,95364.0,9.992e-05]
[1740172962524,0.42084148,95365.0,95364.0,9.992e-05]
[1740172962863,0.41784148,95365.0,95364.0,9.992e-05]
[1740172963065,0.42584148,95365.0,95364.0,9.992e-05]
[1740172963422,0.42184148,95365.0,95364.0,9.992e-05]
[1740172963731,0.42584148,95365.0,95364.0,9.992e-05]
[1740172964491,0.41784148,95365.0,95364.0,9.992e-05]
[1740172964929,0.42484148,95365.0,95364.0,9.992e-05]
[1740172965988,0.42084148,95365.0,95364.0,9.992e-05]
[1740172966445,0.42484148,95365.0,95364.0,9.992e-05]
[1740172967597,0.42084148,95365.0,95364.0,9.992e-05]
[1740172967804,0.41784148,95365.0,95364.0,9.992e-05]
[1740172968028,0.42984148,95365.0,95364.0,9.992e-05]
[1740172970666,0.32719579,95365.0,95364.0,9.992e-05]
[1740172971786,0.32119579,95365.0,95364.0,9.992e-05]
[1740172972004,0.32619579,95365.0,95364.0,9.992e-05]
[1740172972410,0.31519579,95365.0,95364.0,9.992e-05]
[1740172972848,0.32319579,95365.0,95364.0,9.992e-05]
[1740172973051,0.31919579,95365.0,95364.0,9.992e-05]
[1740172973410,0.32319579,95365.0,95364.0,9.992e-05]
[1740172973809,0.32719579,95365.0,95364.0,9.992e-05]
[1740172974013,0.32319579,95365.0,95364.0,9.992e-05]
[1740172974373,0.31919579,95365.0,95364.0,9.992e-05]
[1740172974681,0.32519579,95365.0,95364.0,9.992e-05]
[1740172975193,0.32219579,95365.0,95364.0,9.992e-05]
[1740172975399,0.32519579,95365.0,95364.0,9.992e-05]
[1740172976452,0.32519579,95365.0,95364.0,0.00180172]
[1740172978546,0.16729,95365.0,95364.0,0.08893163]
[1740172978699,0.16729,95365.0,95364.0,0.13593163]
[1740172979273,0.16029,95365.0,95364.0,0.13593163]
[1740172979511,0.16329,95365.0,95364.0,0.13593163]
[1740172979892,0.16029,95365.0,95364.0,0.13593163]
[1740172980221,0.15829,95365.0,95364.0,0.13593163]
[1740172980606,0.16029,95365.0,95364.0,0.13593163]
[1740172980972,0.15829,95365.0,95364.0,0.13593163]
[1740172982257,0.30829,95365.0,95364.0,0.00180172]
[1740172983345,0.30729,95365.0,95364.0,0.00180172]
[1740172983547,0.30929,95365.0,95364.0,0.00180172]
[1740172983746,0.31229,95365.0,95364.0,0.00180172]
[1740172983948,0.31029,95365.0,95364.0,0.00180172]
[1740172984353,0.31529,95365.0,95364.0,0.00180172]
[1740172984961,0.158,95365.0,95364.0,0.00180172]
[1740172985160,0.008,95365.0,95364.0,0.09313163]
[1740172985364,0.008,95365.0,95364.0,0.14203163]
[1740172985568,0.15929,95365.0,95364.0,0.14203163]
[1740172985765,0.003,95365.0,95364.0,0.14203163]
[1740172986531,0.001,95365.0,95364.0,0.14203163]
[1740172986706,0.003,95365.0,95364.0,0.29932363]
[1740172986907,0.003,95365.0,95364.0,0.14203163]
[1740172987141,0.001,95365.0,95364.0,0.14203163]
[1740172988366,0.001,95365.0,95364.0,0.14403163]
[1740172988735,0.157276,95374.0,95365.0,0.077]
[1740172988918,0.209696,95376.0,95365.0,0.077]
[1740172989127,0.157277,95373.0,95365.0,0.077]
[1740172989451,0.157277,95373.0,95372.0,0.08612991]
[1740172989805,0.209696,95376.0,95375.0,0.00882991]
[1740172991350,0.209696,95376.0,95375.0,0.00982991]
[1740172997425,0.157272,95376.0,95375.0,0.00982991]
[1740172997842,0.01393066,95390.0,95389.0,0.16607991]
[1740172998038,0.03931793,95404.0,95390.0,0.24327891]
[1740172998242,0.031517,95404.0,95390.0,0.3459246]
[1740172998446,0.157221,95407.0,95390.0,0.3459246]
[1740172998693,0.0143473,95402.0,95390.0,0.3459246]
[1740172999116,0.0143473,95402.0,95390.0,0.3419246]
[1740172999271,0.0058508,95391.0,95390.0,0.3419246]
[1740172999476,0.0008508,95391.0,95390.0,0.3419246]
[1740173000412,0.0008508,95391.0,95390.0,0.3449246]
[1740173000618,0.0028508,95391.0,95390.0,0.3449246]
[1740173001202,0.0028508,95391.0,95390.0,0.3936246]
[1740173001798,0.0018508,95391.0,95390.0,0.3906246]
[1740173002034,0.0028508,95391.0,95390.0,0.3976246]
[1740173002196,0.0028508,95391.0,95390.0,0.71879365]
[1740173004913,0.0028508,95391.0,95390.0,0.45889896]
[1740173005357,0.0028508,95391.0,95390.0,0.61614796]
[1740173008975,0.0028508,95391.0,95390.0,0.71879365]
[1740173015128,0.0028508,95391.0,95390.0,0.7333345]
[1740173015364,0.0028508,95391.0,95390.0,0.8833345]
[1740173016318,0.0018508,95391.0,95390.0,0.8833345]
[1740173016516,0.0028508,95391.0,95390.0,0.8833345]
[1740173017118,0.0018508,95391.0,95390.0,0.8763345]
[1740173017318,0.0018508,95391.0,95390.0,0.55671474]
[1740173017531,0.0018508,95391.0,95390.0,0.71396374]
[1740173017764,0.0018508,95391.0,95390.0,0.71879365]
[1740173020486,0.0018508,95391.0,95390.0,0.71396374]
[1740173020912,0.0018508,95391.0,95390.0,0.55671474]
[1740173021664,0.0018508,95391.0,95390.0,0.71879365]
[1740173036026,0.00129518,95391.0,95390.0,0.71879365]
[1740173037279,0.00129518,95391.0,95390.0,0.7333345]
[1740173039568,0.00026729,95391.0,95390.0,0.7333345]
[1740173041358,5.268e-05,95391.0,95390.0,0.7333345]
[1740173047393,5.268e-05,95391.0,95390.0,1.2963345]
[1740173047554,5.268e-05,95391.0,95390.0,1.4663345]
[1740173049691,5.268e-05,95391.0,95390.0,1.48712946]
[1740173049914,5.268e-05,95391.0,95390.0,1.49500559]
[1740173050327,0.00090348,95391.0,95390.0,1.49500559]
[1740173051494,0.00090348,95391.0,95390.0,1.49430559]
[1740173052151,0.00090348,95391.0,95390.0,1.42080459]
[1740173052368,0.00090348,95391.0,95390.0,1.40626374]
[1740173052576,0.00090348,95391.0,95390.0,1.25626374]
[1740173052915,0.00090348,95391.0,95390.0,0.71326374]
[1740173053089,0.00090348,95391.0,95390.0,0.71809365]
[1740173055397,0.00090348,95391.0,95390.0,0.71326374]
[1740173055740,0.00090348,95391.0,95390.0,0.71809365]
[1740173058293,0.00090348,95391.0,95390.0,0.7326345]
[1740173058520,0.00090348,95391.0,95390.0,0.7526345]
[1740173058701,0.00090348,95391.0,95390.0,1.4456345]
[1740173060595,0.157179,95433.0,95431.0,0.00482991]
[1740173060892,0.157179,95432.0,95431.0,0.00482991]
[1740173061807,0.15725178,95432.0,95431.0,0.00582991]
[1740173062234,0.15725178,95432.0,95431.0,0.00482991]
[1740173062639,0.15725178,95432.0,95431.0,0.00582991]
[1740173062839,0.30725178,95432.0,95431.0,0.001]
[1740173063069,0.40989747,95432.0,95431.0,0.001]
[1740173064388,0.157201,95419.0,95418.0,0.32116905]
[1740173064606,0.157218,95409.0,95395.0,0.32116905]
[1740173064809,0.157218,95409.0,95396.0,0.10264569]
[1740173065218,0.157216,95410.0,95396.0,0.10264569]
[1740173065524,0.157218,95409.0,95396.0,0.10264569]
[1740173065689,1.03523137,95419.0,95396.0,0.10264569]
[1740173065860,0.157217,95410.0,95396.0,0.10264569]
[1740173066072,0.157219,95408.0,95396.0,0.10964569]
[1740173066478,0.15722,95408.0,95396.0,0.10964569]
[1740173066689,0.157219,95408.0,95396.0,0.11564569]
[1740173067321,0.157219,95408.0,95396.0,0.10864569]
[1740173067680,0.157219,95408.0,95396.0,0.11164569]
[1740173067880,0.157219,95408.0,95396.0,0.10564569]
[1740173068086,0.157219,95408.0,95396.0,0.10664569]
[1740173068446,0.157217,95410.0,95409.0,0.00482991]
[1740173068644,1.03523137,95419.0,95416.0,0.00482991]
[1740173069030,0.157203,95418.0,95416.0,0.00482991]
[1740173069273,1.03523137,95419.0,95397.0,0.32116905]
[1740173069516,0.209617,95412.0,95398.0,0.10264569]
[1740173069749,1.03523137,95419.0,95411.0,0.00482991]
[1740173069954,0.157215,95411.0,95409.0,0.004]
[1740173070230,1.03523137,95419.0,95418.0,0.00482991]
[1740173070451,1.19243237,95419.0,95418.0,0.00482991]
[1740173071220,0.16918708,95430.0,95409.0,0.01]
[1740173071221,0.02262426,95448.0,95421.0,0.00482991]
[1740173071491,0.209567,95435.0,95427.0,0.00482991]
[1740173071709,0.157186,95429.0,95427.0,0.00482991]
[1740173072916,0.159186,95429.0,95427.0,0.00482991]
[1740173073657,0.161186,95429.0,95427.0,0.00482991]
[1740173074155,0.004,95429.0,95427.0,0.00482991]
[1740173074362,0.157186,95428.0,95427.0,0.00482991]
[1740173075025,0.157186,95428.0,95427.0,0.00682991]
[1740173075817,0.157186,95428.0,95427.0,0.00782991]
[1740173076190,0.157186,95428.0,95427.0,0.001]
[1740173076450,1.19241737,95428.0,95427.0,0.001]
[1740173076707,1.34241737,95428.0,95427.0,0.001]
[1740173077281,1.34241737,95428.0,95427.0,0.004]
[1740173084890,7.278e-05,95432.0,95431.0,0.00482991]
[1740173085515,0.15725178,95432.0,95431.0,0.00482991]
[1740173085661,7.278e-05,95432.0,95431.0,0.00482991]
[1740173085872,0.15725178,95432.0,95431.0,0.00482991]
[1740173086251,0.15725178,95432.0,95431.0,0.00582991]
[1740173086982,0.15725178,95432.0,95431.0,0.00782991]
[1740173087455,0.15725178,95432.0,95431.0,0.00482991]
[1740173087632,0.15725178,95432.0,95431.0,0.00782991]
[1740173087777,0.15725178,95432.0,95431.0,0.00982991]
[1740173089727,0.30725178,95432.0,95431.0,0.005]
[1740173089928,1.34248315,95432.0,95431.0,0.005]
[1740173090872,1.34248315,95432.0,95431.0,0.002]
[1740173090873,0.30725178,95432.0,95431.0,0.002]
[1740173091050,0.157193,95424.0,95423.0,0.00482991]
[1740173092289,0.209582,95428.0,95423.0,0.00482991]
[1740173092487,7.278e-05,95432.0,95430.0,0.00482991]
[1740173092633,0.366756,95431.0,95430.0,0.00482991]
[1740173093496,0.157181,95431.0,95430.0,0.00482991]
[1740173095064,0.157181,95431.0,95430.0,0.00582991]
[1740173095234,0.158181,95431.0,95430.0,0.00582991]
[1740173097010,0.158181,95431.0,95430.0,0.00753091]
[1740173099713,0.001,95431.0,95430.0,0.00753091]
[1740173102483,0.001,95431.0,95430.0,0.002701]
[1740173103707,0.001,95431.0,95430.0,0.077801]
[1740173106109,0.001,95431.0,95430.0,0.002701]
[1740173109662,1.18623137,95431.0,95430.0,0.002701]
[1740173111535,0.151,95431.0,95430.0,0.002701]
[1740173112104,0.001,95431.0,95430.0,0.08863091]
[1740173112550,0.001,95431.0,95430.0,0.13473091]
[1740173113724,0.001,95431.0,95430.0,0.13373091]
[1740173113954,7.278e-05,95432.0,95431.0,0.00482991]
[1740173114177,7.278e-05,95432.0,95431.0,0.1853756]
[1740173114519,7.278e-05,95432.0,95431.0,0.55204465]
[1740173116558,7.278e-05,95432.0,95431.0,0.55904465]
[1740173116710,7.278e-05,95432.0,95431.0,0.45639896]
[1740173116907,7.278e-05,95432.0,95431.0,0.44939896]
[1740173117092,7.278e-05,95432.0,95431.0,0.45539896]
[1740173117710,7.278e-05,95432.0,95431.0,0.45939896]
[1740173117899,7.278e-05,95432.0,95431.0,0.45539896]
[1740173118299,7.278e-05,95432.0,95431.0,0.45939896]
[1740173118977,7.278e-05,95432.0,95431.0,0.45339896]
[1740173119361,7.278e-05,95432.0,95431.0,0.45939896]
[1740173122191,7.278e-05,95432.0,95431.0,0.45339896]
[1740173122621,7.278e-05,95432.0,95431.0,0.46109996]
[1740173122777,0.00092328,95432.0,95431.0,0.46109996]
[1740173123170,0.00092328,95432.0,95431.0,0.45509996]
[1740173123350,0.00092328,95432.0,95431.0,0.45809996]
[1740173123869,0.00092328,95432.0,95431.0,0.5752865]
[1740173124075,0.00092328,95432.0,95431.0,0.5792865]
[1740173124274,0.00092328,95432.0,95431.0,0.59185898]
[1740173124633,0.00092328,95432.0,95431.0,0.59685898]
[1740173125397,0.00092328,95432.0,95431.0,0.5732865]
[1740173125824,0.00092328,95432.0,95431.0,0.5802865]
[1740173125980,0.00092328,95432.0,95431.0,0.5752865]
[1740173126188,0.00092328,95432.0,95431.0,0.5812865]
[1740173126586,0.00092328,95432.0,95431.0,0.5752865]
[1740173126784,0.00092328,95432.0,95431.0,0.56074565]
[1740173127014,0.00092328,95432.0,95431.0,0.56774565]
[1740173127168,0.00092328,95432.0,95431.0,0.5822865]
[1740173128195,0.21653046,95440.0,95434.0,0.01454085]
[1740173128394,0.21653046,95440.0,95436.0,0.0754]
[1740173128620,0.21653046,95440.0,95439.0,0.07922991]
[1740173128843,0.21653046,95440.0,95439.0,0.1818756]
[1740173129045,0.21653046,95440.0,95439.0,0.2314756]
[1740173130041,0.21653046,95440.0,95439.0,0.13]
[1740173130240,0.21653046,95440.0,95439.0,0.137]
[1740173130451,0.21653046,95440.0,95439.0,0.012]
[1740173132059,0.21653046,95440.0,95439.0,0.01582991]
[1740173132816,0.21653046,95440.0,95439.0,0.012]
[1740173133298,0.21653046,95440.0,95439.0,0.01582991]
[1740173135037,0.21653046,95440.0,95439.0,0.012]
[1740173135381,0.21653046,95440.0,95439.0,0.01582991]
[1740173135590,0.21653046,95440.0,95439.0,0.01753091]
[1740173136005,0.21653046,95440.0,95439.0,0.013701]
[1740173136899,0.21653046,95440.0,95439.0,0.006701]
[1740173137302,0.21653046,95440.0,95439.0,0.001701]
[1740173137499,0.36653046,95440.0,95439.0,0.001701]
[1740173138564,0.46917615,95440.0,95439.0,0.001701]
[1740173138759,0.46917615,95440.0,95439.0,0.004701]
[1740173139194,0.46917615,95440.0,95439.0,0.001701]
[1740173139601,0.46917615,95440.0,95439.0,0.003701]
[1740173139984,0.47117615,95440.0,95439.0,0.001701]
[1740173140206,0.46917615,95440.0,95439.0,0.001701]
[1740173140568,0.47217615,95440.0,95439.0,0.001701]
[1740173141779,0.46917615,95440.0,95439.0,0.001701]
[1740173142182,0.47317615,95440.0,95439.0,0.001701]
[1740173142855,0.47517615,95440.0,95439.0,0.001701]
[1740173143175,0.46917615,95440.0,95439.0,0.001701]
[1740173143381,0.47217615,95440.0,95439.0,0.001701]
[1740173143616,0.46917615,95440.0,95439.0,0.001701]
[1740173144984,0.47117615,95440.0,95439.0,0.001701]
[1740173152592,0.36853046,95440.0,95439.0,0.078801]
[1740173154220,0.36653046,95440.0,95439.0,0.078801]
[1740173154555,0.36853046,95440.0,95439.0,0.078801]
[1740173154829,0.36653046,95440.0,95439.0,0.078801]
[1740173155207,0.36753046,95440.0,95439.0,0.078801]
[1740173155414,0.36653046,95440.0,95439.0,0.080801]
[1740173155876,0.36653046,95440.0,95439.0,0.078801]
[1740173156279,0.36653046,95440.0,95439.0,0.080801]
[1740173163857,0.36653046,95440.0,95439.0,0.003701]
[1740173167823,0.15,95439.0,95431.0,0.001701]
[1740173168028,0.15,95437.0,95410.0,0.0792]
[1740173168232,0.15,95419.0,95403.0,0.0792]
[1740173168435,0.15,95412.0,95397.0,0.0477]
[1740173168636,0.15,95410.0,95397.0,0.0477]
[1740173168836,0.10264569,95409.0,95397.0,0.0477]
[1740173169066,1.13787706,95409.0,95396.0,0.08302991]
[1740173169912,1.13787706,95409.0,95400.0,0.00204]
[1740173171134,1.13787706,95409.0,95400.0,4e-05]
[1740173171331,1.13787706,95409.0,95400.0,0.00204]
[1740173172152,0.00787685,95411.0,95400.0,4e-05]
[1740173172367,0.16918708,95420.0,95410.0,0.00282991]
[1740173172526,0.16918708,95420.0,95414.0,0.00282991]
[1740173172945,0.15,95419.0,95414.0,0.00282991]
[1740173174029,0.15,95419.0,95414.0,0.00082991]
[1740173174624,0.00017009,95409.0,95401.0,0.1213]
[1740173175183,0.16918708,95411.0,95401.0,0.1213]
[1740173175384,0.003,95419.0,95401.0,0.1213]
[1740173175385,0.154,95419.0,95401.0,0.1213]
[1740173175804,0.16918708,95411.0,95401.0,0.1213]
[1740173176471,0.16918708,95411.0,95401.0,0.1233]
[1740173176868,0.16918708,95411.0,95401.0,0.1243]
[1740173177228,0.16918708,95411.0,95401.0,0.1233]
[1740173177662,0.16918708,95411.0,95401.0,0.1213]
[1740173178012,0.16918708,95411.0,95401.0,0.1233]
[1740173183839,0.16918708,95411.0,95401.0,0.1213]
[1740173184041,0.17018708,95411.0,95401.0,0.1213]
[1740173184680,0.17118708,95411.0,95401.0,0.1213]
[1740173185318,0.16918708,95411.0,95401.0,0.1213]
[1740173186278,0.2797623,95410.0,95400.0,4e-05]
[1740173186483,0.15,95399.0,95391.0,0.04512]
[1740173186684,0.15,95397.0,95375.0,0.0017018]
[1740173186887,0.10264569,95398.0,95375.0,0.0017018]
[1740173186888,0.15,95395.0,95375.0,0.0017018]
[1740173187085,0.15,95384.0,95375.0,0.0017018]
[1740173187294,1.18523137,95384.0,95375.0,0.0017018]
[1740173187713,1.18527468,95384.0,95375.0,0.0017018]
[1740173188412,1.18527468,95384.0,95375.0,0.0027018]
[1740173188413,0.15,95382.0,95375.0,0.0027018]
[1740173189211,0.1648061,95382.0,95375.0,0.0027018]
[1740173189913,0.1648061,95382.0,95375.0,0.0017018]
[1740173190286,0.1648061,95382.0,95375.0,0.0027018]
[1740173190784,0.1648061,95382.0,95375.0,0.0017018]
[1740173190979,0.1648061,95382.0,95375.0,0.0047018]
[1740173191382,0.1648061,95382.0,95375.0,0.0027018]
[1740173191591,0.1658061,95382.0,95375.0,0.0027018]
[1740173193032,0.11845179,95382.0,95375.0,0.0027018]
[1740173193727,0.11745179,95382.0,95375.0,0.0017018]
[1740173193885,0.11845179,95382.0,95375.0,0.0017018]
[1740173196228,0.15,95380.0,95375.0,0.0017018]
[1740173196431,0.15,95378.0,95375.0,0.0017018]
[1740173199507,0.15,95378.0,95375.0,0.0027018]
[1740173202744,0.15,95377.0,95375.0,0.0027018]
[1740173203023,0.157272,95376.0,95375.0,0.0027018]
[1740173203623,0.157272,95376.0,95375.0,0.0017018]
[1740173204003,0.157272,95376.0,95375.0,0.0037018]
[1740173204579,0.157272,95376.0,95375.0,0.0027018]
[1740173205766,0.157272,95376.0,95375.0,0.0047018]
[1740173212721,0.307272,95376.0,95375.0,0.0047018]
[1740173213260,0.49802288,95376.0,95375.0,0.0047018]
[1740173213460,0.30729,95365.0,95361.0,0.0798]
[1740173216112,0.30729,95365.0,95364.0,0.0037018]
[1740173216311,0.30729,95365.0,95364.0,0.0047018]
[1740173220580,0.41795399,95365.0,95364.0,0.0047018]
[1740173220780,0.157325,95344.0,95340.0,0.0494]
[1740173220993,0.307325,95344.0,95340.0,0.0494]
[1740173221416,0.15,95344.0,95340.0,0.0494]
[1740173221819,0.15,95344.0,95343.0,0.0077002]
[1740173222000,0.15,95344.0,95343.0,0.0081343]
[1740173222423,0.307325,95344.0,95343.0,0.0021343]
[1740173222582,0.15,95344.0,95343.0,0.0021343]
[1740173222895,0.152,95344.0,95343.0,0.0021343]
[1740173223297,0.154,95344.0,95343.0,0.0021343]
[1740173223955,0.156,95344.0,95343.0,0.0021343]
[1740173224127,0.152,95344.0,95343.0,0.0021343]
[1740173224555,0.154,95344.0,95343.0,0.0021343]
[1740173224711,0.004,95344.0,95343.0,0.0021343]
[1740173224910,0.002,95344.0,95343.0,0.0021343]
[1740173225117,0.002,95344.0,95343.0,0.2363603]
[1740173225322,0.002,95344.0,95343.0,0.2830603]
[1740173225536,0.003,95344.0,95343.0,0.38570599]
[1740173225960,0.001,95344.0,95343.0,0.38570599]
[1740173226161,0.09420058,95353.0,95352.0,0.1271]
[1740173226417,0.09420058,95353.0,95352.0,0.284411]
[1740173226623,0.09420058,95353.0,95352.0,0.1271]
[1740173227511,0.09420058,95353.0,95352.0,0.1281]
[1740173228339,0.15,95363.0,95352.0,0.1281]
[1740173228993,0.157296,95362.0,95352.0,0.1301]
[1740173229192,0.16918708,95362.0,95352.0,0.1301]
[1740173229395,0.15,95363.0,95352.0,0.1291]
[1740173229604,0.152,95363.0,95352.0,0.1291]
[1740173229824,0.15,95363.0,95352.0,0.1291]
[1740173230328,0.157297,95361.0,95352.0,0.1291]
[1740173230769,0.001,95362.0,95352.0,0.1291]
[1740173230963,0.17018708,95362.0,95352.0,0.1271]
[1740173231164,0.157297,95361.0,95352.0,0.1271]
[1740173231366,0.157298,95360.0,95352.0,0.1271]
[1740173231571,0.17018708,95362.0,95352.0,0.1271]
[1740173231722,0.17018708,95362.0,95352.0,0.0498]
[1740173231723,0.30731,95353.0,95352.0,0.0498]
[1740173231927,0.157323,95345.0,95344.0,0.0785]
[1740173232306,0.157325,95344.0,95343.0,0.0498343]
[1740173232512,0.307325,95344.0,95343.0,0.0498343]
[1740173232719,0.307325,95344.0,95343.0,0.0021343]
[1740173233851,0.308325,95344.0,95343.0,0.0021343]
[1740173234048,0.307325,95344.0,95343.0,0.0021343]
[1740173235283,0.307325,95344.0,95343.0,0.0041343]
[1740173236395,1.34255637,95344.0,95343.0,0.0041343]
[1740173236550,1.34255637,95344.0,95343.0,0.0051343]
[1740173238684,1.37234652,95344.0,95343.0,0.0051343]
[1740173239325,1.34255637,95344.0,95343.0,0.0051343]
[1740173240552,1.44520206,95344.0,95343.0,0.0051343]
[1740173241318,1.44520206,95344.0,95343.0,0.0031343]
[1740173241704,1.44720206,95344.0,95343.0,0.0031343]
[1740173242151,1.44520206,95344.0,95343.0,0.0031343]
[1740173242358,1.34255637,95344.0,95343.0,0.0031343]
[1740173242558,1.34455637,95344.0,95343.0,0.0021343]
[1740173242768,1.34655637,95344.0,95343.0,0.0021343]
[1740173243140,1.34455637,95344.0,95343.0,0.0021343]
[1740173243650,1.34655637,95344.0,95343.0,0.0021343]
[1740173244744,1.44920206,95344.0,95343.0,0.0021343]
[1740173245138,0.157338,95336.0,95335.0,0.0017004]
[1740173245338,0.157338,95336.0,95335.0,0.00180032]
[1740173246184,0.15,95336.0,95335.0,0.00180032]
[1740173246391,0.15,95336.0,95335.0,0.00280032]
[1740173246848,0.307338,95336.0,95335.0,0.00280032]
[1740173247432,0.209781,95338.0,95335.0,0.00280032]
[1740173247629,0.209774,95341.0,95335.0,0.00280032]
[1740173247836,0.157338,95336.0,95335.0,0.00280032]
[1740173248384,0.157338,95336.0,95335.0,0.00180032]
[1740173249285,0.157338,95336.0,95335.0,0.00280032]
[1740173256315,0.00775283,95337.0,95335.0,0.00280032]
[1740173256471,0.00798369,95338.0,95336.0,0.0804]
[1740173256694,0.157336,95337.0,95336.0,0.0804]
[1740173257324,0.00798369,95338.0,95336.0,0.0804]
[1740173257839,0.157336,95337.0,95336.0,0.0804]
[1740173259818,0.209758,95348.0,95336.0,0.0804]
[1740173260015,0.09423721,95350.0,95341.0,0.0497]
[1740173260338,0.0008506,95364.0,95350.0,0.0804]
[1740173260680,0.0008506,95364.0,95361.0,0.1301]
[1740173262884,0.0008506,95364.0,95361.0,0.1321]
[1740173263726,0.0008506,95364.0,95363.0,0.157293]
[1740173263926,0.0008506,95364.0,95363.0,0.238493]
[1740173264151,0.0008506,95364.0,95363.0,0.72387954]
[1740173264948,0.0008506,95364.0,95363.0,0.72887954]
[1740173265400,0.0008506,95365.0,95364.0,0.01454085]
[1740173265571,0.0008506,95365.0,95364.0,0.40247854]
[1740173266510,0.09422847,95379.0,95378.0,0.287668]
[1740173266847,0.0946619,95379.0,95378.0,0.40485454]
[1740173267023,0.0946619,95379.0,95378.0,0.72625454]
[1740173267592,0.0446619,95379.0,95378.0,0.72625454]
[1740173268295,0.00143343,95379.0,95378.0,0.73325454]
[1740173268889,0.00043343,95379.0,95378.0,0.74625454]
[1740173269094,0.00143343,95379.0,95378.0,1.30325454]
[1740173269277,0.00143343,95379.0,95378.0,1.29625454]
[1740173269480,0.00143343,95379.0,95378.0,1.30325454]
[1740173270026,0.0008509,95390.0,95379.0,0.09194085]
[1740173270250,0.0008509,95390.0,95389.0,0.14144085]
[1740173270452,0.0008509,95390.0,95389.0,0.24408654]
[1740173271351,0.0018509,95390.0,95389.0,0.25108654]
[1740173272371,0.0018509,95390.0,95389.0,0.57248654]
[1740173272940,0.0018509,95390.0,95389.0,0.57948654]
[1740173274481,0.0018509,95390.0,95389.0,0.73673654]
[1740173275546,0.0018509,95390.0,95389.0,0.41533654]
[1740173276169,0.0018509,95390.0,95389.0,0.24354569]
[1740173276374,0.0018509,95390.0,95389.0,0.1409]
[1740173276575,0.0018509,95390.0,95389.0,0.014]
[1740173277238,0.00169227,95390.0,95389.0,0.014]
[1740173277424,0.00069227,95390.0,95389.0,0.007]
[1740173277814,0.00069227,95390.0,95389.0,0.013]
[1740173277815,0.00169227,95390.0,95389.0,0.013]
[1740173278046,0.15894127,95390.0,95389.0,0.006]
[1740173278183,0.157254,95387.0,95372.0,0.0777]
[1740173278381,0.17087935,95390.0,95389.0,0.005]
[1740173278722,0.00069227,95390.0,95383.0,0.157259]
[1740173278878,0.00069227,95390.0,95381.0,0.209684]
[1740173279080,0.00169227,95390.0,95389.0,0.006]
[1740173279305,0.00169227,95390.0,95389.0,0.15725]
[1740173279511,0.00169227,95390.0,95389.0,0.34069569]
[1740173279737,0.00169227,95390.0,95389.0,0.40093654]
[1740173279890,0.00169227,95390.0,95389.0,0.40293654]
[1740173280297,0.00169227,95390.0,95389.0,0.40093654]
[1740173280707,0.00269227,95390.0,95389.0,0.40893654]
[1740173280906,0.00169227,95390.0,95389.0,0.40793654]
[1740173281109,0.00069227,95390.0,95389.0,0.40093654]
[1740173281310,0.00169227,95390.0,95389.0,0.40793654]
[1740173281510,0.00269227,95390.0,95389.0,0.40793654]
[1740173281893,0.00369227,95390.0,95389.0,0.41493654]
[1740173282099,0.00269227,95390.0,95389.0,0.41493654]
[1740173282298,0.00369227,95390.0,95389.0,0.42193654]
[1740173282728,0.00369227,95390.0,95389.0,0.42168773]
[1740173283369,0.00269227,95390.0,95389.0,0.41468773]
[1740173283780,0.00169227,95390.0,95389.0,0.40768773]
[1740173284162,0.00069227,95390.0,95389.0,0.40068773]
[1740173284362,2.7e-07,95390.0,95389.0,0.44068773]
[1740173284566,0.5,95400.0,95399.0,0.25337485]
[1740173284822,0.5,95400.0,95399.0,0.42172054]
[1740173285902,0.5,95400.0,95399.0,0.42872054]
[1740173286921,0.501,95400.0,95399.0,0.43572054]
[1740173287132,0.501,95400.0,95399.0,0.41572054]
[1740173287328,0.5,95400.0,95399.0,0.40872054]
[1740173287528,0.501,95400.0,95399.0,0.40872054]
[1740173287733,0.501,95400.0,95399.0,0.25148654]
[1740173287934,0.501,95400.0,95399.0,0.24394569]
[1740173288110,0.5,95400.0,95399.0,0.22994569]
[1740173288296,0.5,95400.0,95399.0,0.25148654]
[1740173288498,0.5,95400.0,95399.0,0.25848654]
[1740173288955,0.5,95400.0,95399.0,0.26548654]
[1740173289373,0.5,95400.0,95399.0,0.25148654]
[1740173289811,0.5008504,95400.0,95399.0,0.25148654]